[Event "Live Chess"]
[Site "Chess.com"]
[Date "2023.05.21"]
[Round "-"]
[White "Long1968"]
[Black "MJMykh"]
[Result "1-0"]
[WhiteElo "969"]
[BlackElo "1152"]
[TimeControl "300"]
[EndTime "5:36:46 PDT"]
[Termination "Long1968 won by checkmate"]

1. e4 {[%clk 0:04:56.5]} 1... e5 {[%clk 0:04:58.7]} 2. f4 {[%clk 0:04:53.7]}
2... exf4 {[%clk 0:04:57.3]} 3. Bc4 {[%clk 0:04:51.1]} 3... Nc6 {[%clk
0:04:56.4]} 4. Nf3 {[%clk 0:04:44.8]} 4... Nf6 {[%clk 0:04:54.7]} 5. d4 {[%clk
0:04:33.9]} 5... h6 {[%clk 0:04:52.6]} 6. Bxf4 {[%clk 0:04:26.7]} 6... Bb4+
{[%clk 0:04:49.2]} 7. c3 {[%clk 0:04:22.8]} 7... Be7 {[%clk 0:04:47]} 8. e5
{[%clk 0:04:17.1]} 8... Nh5 {[%clk 0:04:42.4]} 9. Qd2 {[%clk 0:03:43.8]} 9...
Nxf4 {[%clk 0:04:28.7]} 10. Qxf4 {[%clk 0:03:39.7]} 10... O-O {[%clk 0:04:27.6]}
11. O-O {[%clk 0:03:31]} 11... d5 {[%clk 0:04:22.4]} 12. exd6 {[%clk 0:03:22]}
12... Bxd6 {[%clk 0:04:19.3]} 13. Ne5 {[%clk 0:03:02]} 13... Bxe5 {[%clk
0:04:15.9]} 14. Bxf7+ {[%clk 0:02:40.9]} 14... Kh7 {[%clk 0:04:13.6]} 15. dxe5
{[%clk 0:02:33.5]} 15... Be6 {[%clk 0:03:55.5]} 16. Qe4+ {[%clk 0:01:55.8]}
16... g6 {[%clk 0:03:32.3]} 17. Qxg6+ {[%clk 0:01:39.5]} 17... Kh8 {[%clk
0:03:29.4]} 18. Qxh6# {[%clk 0:01:35]} 1-0

[Event "Live Chess"]
[Site "Chess.com"]
[Date "2023.05.21"]
[Round "-"]
[White "friarnator"]
[Black "CheckThis4"]
[Result "0-1"]
[WhiteElo "2017"]
[BlackElo "2515"]
[TimeControl "300"]
[EndTime "5:36:55 PDT"]
[Termination "CheckThis4 won by resignation"]

1. e4 {[%clk 0:04:58.3]} 1... d5 {[%clk 0:04:58.7]} 2. exd5 {[%clk 0:04:56.4]}
2... Nf6 {[%clk 0:04:56.3]} 3. Bb5+ {[%clk 0:04:54.6]} 3... Nbd7 {[%clk
0:04:54.3]} 4. c4 {[%clk 0:04:40]} 4... a6 {[%clk 0:04:52.2]} 5. Ba4 {[%clk
0:04:39.7]} 5... e6 {[%clk 0:04:34]} 6. dxe6 {[%clk 0:04:37.1]} 6... fxe6 {[%clk
0:04:33.9]} 7. d4 {[%clk 0:04:32.3]} 7... Bb4+ {[%clk 0:04:30.1]} 8. Nc3 {[%clk
0:04:31]} 8... b5 {[%clk 0:04:22.3]} 9. Bb3 {[%clk 0:04:27.4]} 9... Nb6 {[%clk
0:04:14.9]} 10. cxb5 {[%clk 0:04:21.3]} 10... Nbd5 {[%clk 0:04:13.4]} 11. Bd2
{[%clk 0:04:17.3]} 11... O-O {[%clk 0:04:04]} 12. Nf3 {[%clk 0:04:13.1]} 12...
axb5 {[%clk 0:04:00.8]} 13. O-O {[%clk 0:03:55.3]} 13... Bxc3 {[%clk 0:03:57.5]}
14. bxc3 {[%clk 0:03:51.8]} 14... Bb7 {[%clk 0:03:47.5]} 15. Qe2 {[%clk
0:03:45.8]} 15... Ra6 {[%clk 0:03:35.1]} 16. Qxb5 {[%clk 0:03:38.1]} 16... Rb6
{[%clk 0:03:34.1]} 17. Qe2 {[%clk 0:03:25.7]} 17... Nh5 {[%clk 0:03:30.6]} 18.
c4 {[%clk 0:03:21.4]} 18... Ndf4 {[%clk 0:03:28.7]} 19. Bxf4 {[%clk 0:02:39.7]}
19... Nxf4 {[%clk 0:03:26.5]} 20. Qe5 {[%clk 0:02:14.7]} 20... Bxf3 {[%clk
0:03:09.2]} 21. gxf3 {[%clk 0:02:06.9]} 21... Rf5 {[%clk 0:03:07.3]} 22. Qxf5
{[%clk 0:01:49.9]} 22... exf5 {[%clk 0:03:05.4]} 23. Kh1 {[%clk 0:01:49.8]}
23... Rh6 {[%clk 0:03:01.6]} 24. c5+ {[%clk 0:01:40.5]} 24... Kf8 {[%clk
0:03:00]} 0-1

[Event "Live Chess"]
[Site "Chess.com"]
[Date "2023.05.21"]
[Round "-"]
[White "LiamBellwood"]
[Black "TheSmoulderingMaster"]
[Result "1-0"]
[WhiteElo "1923"]
[BlackElo "1637"]
[TimeControl "300"]
[EndTime "5:37:06 PDT"]
[Termination "LiamBellwood won by resignation"]

1. d4 {[%clk 0:04:59.1]} 1... Nf6 {[%clk 0:04:58.6]} 2. Nc3 {[%clk 0:04:58.8]}
2... g6 {[%clk 0:04:57.1]} 3. Bf4 {[%clk 0:04:58.5]} 3... d6 {[%clk 0:04:54.9]}
4. Qd2 {[%clk 0:04:57.7]} 4... Bg7 {[%clk 0:04:54.3]} 5. e4 {[%clk 0:04:56.9]}
5... O-O {[%clk 0:04:53.4]} 6. Bh6 {[%clk 0:04:56.1]} 6... c6 {[%clk 0:04:46.3]}
7. h4 {[%clk 0:04:54.9]} 7... b5 {[%clk 0:04:42.4]} 8. f3 {[%clk 0:04:53.5]}
8... b4 {[%clk 0:04:41.4]} 9. Nce2 {[%clk 0:04:52.2]} 9... Ba6 {[%clk
0:04:25.4]} 10. h5 {[%clk 0:04:49.7]} 10... Nbd7 {[%clk 0:04:20.4]} 11. hxg6
{[%clk 0:04:46.3]} 11... fxg6 {[%clk 0:04:18.4]} 12. Bxg7 {[%clk 0:04:45]} 12...
Kxg7 {[%clk 0:04:17.9]} 13. Qh6+ {[%clk 0:04:44.4]} 13... Kf7 {[%clk 0:04:17.1]}
14. Nh3 {[%clk 0:04:39.7]} 14... Ke8 {[%clk 0:04:09.9]} 15. Ng5 {[%clk
0:04:36.9]} 15... e5 {[%clk 0:04:07.9]} 16. Ne6 {[%clk 0:04:34.3]} 16... Qe7
{[%clk 0:04:04.2]} 17. Nxf8 {[%clk 0:04:32.2]} 17... Qxf8 {[%clk 0:04:03.6]} 18.
Qxf8+ {[%clk 0:04:31.4]} 18... Kxf8 {[%clk 0:04:03.2]} 19. dxe5 {[%clk
0:04:30.6]} 19... Nxe5 {[%clk 0:04:01.9]} 20. O-O-O {[%clk 0:04:28.2]} 20... Bb5
{[%clk 0:03:58.7]} 21. Nd4 {[%clk 0:04:26.5]} 21... Bxf1 {[%clk 0:03:56.5]} 22.
Rhxf1 {[%clk 0:04:22.7]} 22... c5 {[%clk 0:03:55.3]} 23. Nb5 {[%clk 0:04:20.3]}
23... a5 {[%clk 0:03:48.2]} 24. Rxd6 {[%clk 0:04:17.7]} 24... Ke7 {[%clk
0:03:45.6]} 25. Rfd1 {[%clk 0:04:14.9]} 25... Rb8 {[%clk 0:03:42.7]} 26. Na7
{[%clk 0:04:05.2]} 26... Rb7 {[%clk 0:03:40.7]} 27. Nc6+ {[%clk 0:04:03.2]}
27... Nxc6 {[%clk 0:03:38.9]} 28. Rxc6 {[%clk 0:04:03.1]} 28... Rb5 {[%clk
0:03:33.4]} 29. b3 {[%clk 0:03:57.9]} 29... Nd7 {[%clk 0:03:27.7]} 30. Rc7
{[%clk 0:03:55.8]} 1-0

[Event "Live Chess"]
[Site "Chess.com"]
[Date "2023.05.21"]
[Round "-"]
[White "GwaryTek"]
[Black "Biranidun"]
[Result "0-1"]
[WhiteElo "2061"]
[BlackElo "2524"]
[TimeControl "300"]
[EndTime "5:37:15 PDT"]
[Termination "Biranidun won on time"]

1. d4 {[%clk 0:04:58.2]} 1... Nf6 {[%clk 0:04:58.8]} 2. c4 {[%clk 0:04:57.8]}
2... g6 {[%clk 0:04:54.4]} 3. Nc3 {[%clk 0:04:57.3]} 3... Bg7 {[%clk 0:04:53.2]}
4. e4 {[%clk 0:04:56.9]} 4... d6 {[%clk 0:04:52.5]} 5. Nge2 {[%clk 0:04:56.2]}
5... O-O {[%clk 0:04:51.8]} 6. Ng3 {[%clk 0:04:55.8]} 6... c5 {[%clk 0:04:50]}
7. d5 {[%clk 0:04:55.5]} 7... e6 {[%clk 0:04:49.6]} 8. f3 {[%clk 0:04:53.1]}
8... exd5 {[%clk 0:04:49.5]} 9. cxd5 {[%clk 0:04:52.4]} 9... a6 {[%clk
0:04:48.7]} 10. a4 {[%clk 0:04:52]} 10... h5 {[%clk 0:04:47.7]} 11. Bd3 {[%clk
0:04:45.4]} 11... h4 {[%clk 0:04:46.5]} 12. Nge2 {[%clk 0:04:44.6]} 12... Nbd7
{[%clk 0:04:41.8]} 13. Bg5 {[%clk 0:04:42.5]} 13... h3 {[%clk 0:04:39.9]} 14. g3
{[%clk 0:04:40.1]} 14... Ne5 {[%clk 0:04:38.3]} 15. O-O {[%clk 0:04:35.8]} 15...
c4 {[%clk 0:04:31]} 16. Bc2 {[%clk 0:04:27.7]} 16... Qb6+ {[%clk 0:04:29.9]} 17.
Qd4 {[%clk 0:04:15.2]} 17... Qxb2 {[%clk 0:04:10.8]} 18. Ra2 {[%clk 0:03:37]}
18... Qb4 {[%clk 0:04:03.5]} 19. a5 {[%clk 0:03:21.6]} 19... Nfd7 {[%clk
0:04:01.1]} 20. Qd2 {[%clk 0:01:53.2]} 20... Qc5+ {[%clk 0:03:59]} 21. Be3
{[%clk 0:01:51.1]} 21... Qc7 {[%clk 0:03:58]} 22. Nf4 {[%clk 0:01:45.2]} 22...
Nc5 {[%clk 0:03:55.3]} 23. g4 {[%clk 0:01:30.4]} 23... Bd7 {[%clk 0:03:47.2]}
24. Nxh3 {[%clk 0:01:23.4]} 24... Nb3 {[%clk 0:03:46.6]} 25. Qf2 {[%clk
0:01:08]} 25... Nd3 {[%clk 0:03:42.7]} 26. Qh4 {[%clk 0:00:53.3]} 26... f6
{[%clk 0:03:27]} 27. Bb6 {[%clk 0:00:16]} 27... Qc8 {[%clk 0:03:24.9]} 28. Ne2
{[%clk 0:00:11.2]} 28... g5 {[%clk 0:03:22.3]} 29. Qg3 {[%clk 0:00:04.7]} 29...
Qe8 {[%clk 0:03:21.1]} 30. Qxd6 {[%clk 0:00:02.6]} 30... Qe5 {[%clk 0:03:20.7]}
31. Qxe5 {[%clk 0:00:01.6]} 31... Nxe5 {[%clk 0:03:20.6]} 0-1

[Event "Live Chess"]
[Site "Chess.com"]
[Date "2023.05.21"]
[Round "-"]
[White "grillage"]
[Black "garyjc"]
[Result "1-0"]
[WhiteElo "1796"]
[BlackElo "1040"]
[TimeControl "300"]
[EndTime "5:37:16 PDT"]
[Termination "grillage won by resignation"]

1. d4 {[%clk 0:04:59.3]} 1... Nf6 {[%clk 0:04:57.4]} 2. Nc3 {[%clk 0:04:58.4]}
2... g6 {[%clk 0:04:56.6]} 3. Bf4 {[%clk 0:04:56.3]} 3... Bg7 {[%clk 0:04:55.8]}
4. e4 {[%clk 0:04:55.7]} 4... O-O {[%clk 0:04:55]} 5. e5 {[%clk 0:04:54]} 5...
Nh5 {[%clk 0:04:51.7]} 6. Bd2 {[%clk 0:04:53]} 6... d6 {[%clk 0:04:42.1]} 7. g4
{[%clk 0:04:51.1]} 7... Bxg4 {[%clk 0:04:17.3]} 8. Qxg4 {[%clk 0:04:47.5]} 8...
dxe5 {[%clk 0:04:11.5]} 9. dxe5 {[%clk 0:04:42.9]} 9... Bxe5 {[%clk 0:04:06.3]}
10. O-O-O {[%clk 0:04:39.7]} 10... Nd7 {[%clk 0:04:00.3]} 11. Bh6 {[%clk
0:04:30.1]} 11... Bg7 {[%clk 0:03:55.2]} 12. Bxg7 {[%clk 0:04:28.2]} 12... Kxg7
{[%clk 0:03:54]} 13. Qxd7 {[%clk 0:04:20.9]} 13... Qxd7 {[%clk 0:03:44.9]} 14.
Rxd7 {[%clk 0:04:18.8]} 14... Nf4 {[%clk 0:03:41.4]} 15. Rxe7 {[%clk 0:04:10.9]}
15... Rfe8 {[%clk 0:03:32.2]} 16. Rxe8 {[%clk 0:03:50.5]} 16... Rxe8 {[%clk
0:03:30.4]} 17. Nge2 {[%clk 0:03:47.9]} 17... Nxe2+ {[%clk 0:03:20.5]} 18. Bxe2
{[%clk 0:03:46.7]} 1-0

[Event "Live Chess"]
[Site "Chess.com"]
[Date "2023.05.21"]
[Round "-"]
[White "YrrriKharkiv"]
[Black "Anirudh_23"]
[Result "1-0"]
[WhiteElo "2072"]
[BlackElo "1886"]
[TimeControl "300"]
[EndTime "5:37:20 PDT"]
[Termination "YrrriKharkiv won by resignation"]

1. d4 {[%clk 0:04:54.9]} 1... Nf6 {[%clk 0:04:58.7]} 2. c4 {[%clk 0:04:54.1]}
2... g6 {[%clk 0:04:57.6]} 3. Nc3 {[%clk 0:04:52.5]} 3... d5 {[%clk 0:04:57]} 4.
Qb3 {[%clk 0:04:50.5]} 4... dxc4 {[%clk 0:04:52.3]} 5. Qxc4 {[%clk 0:04:49.9]}
5... Bg7 {[%clk 0:04:51.7]} 6. Nf3 {[%clk 0:04:48.6]} 6... O-O {[%clk
0:04:45.4]} 7. e4 {[%clk 0:04:44.8]} 7... b6 {[%clk 0:04:32.2]} 8. Qb3 {[%clk
0:04:40.3]} 8... Bb7 {[%clk 0:04:30.1]} 9. Bd3 {[%clk 0:04:38.8]} 9... Nc6
{[%clk 0:04:25.7]} 10. Be3 {[%clk 0:04:37.5]} 10... Ng4 {[%clk 0:04:23.1]} 11.
Ne2 {[%clk 0:04:30.9]} 11... Nxe3 {[%clk 0:04:15.3]} 12. fxe3 {[%clk 0:04:30.2]}
12... e5 {[%clk 0:04:15]} 13. d5 {[%clk 0:04:26.8]} 13... Ne7 {[%clk 0:04:12.3]}
14. O-O {[%clk 0:04:21.4]} 14... f5 {[%clk 0:04:09.8]} 15. d6+ {[%clk 0:04:18]}
1-0

[Event "Live Chess"]
[Site "Chess.com"]
[Date "2023.05.21"]
[Round "-"]
[White "seasidecastle27"]
[Black "davigator"]
[Result "0-1"]
[WhiteElo "1888"]
[BlackElo "2316"]
[TimeControl "300"]
[EndTime "5:37:40 PDT"]
[Termination "davigator won by checkmate"]

1. d4 {[%clk 0:04:55.8]} 1... Nf6 {[%clk 0:04:57]} 2. Nf3 {[%clk 0:04:54.7]}
2... e6 {[%clk 0:04:55.8]} 3. Bg5 {[%clk 0:04:52.4]} 3... c5 {[%clk 0:04:54.6]}
4. Nbd2 {[%clk 0:04:51.1]} 4... d5 {[%clk 0:04:52.9]} 5. e3 {[%clk 0:04:49.8]}
5... Qb6 {[%clk 0:04:52]} 6. Bd3 {[%clk 0:04:46.3]} 6... Qxb2 {[%clk 0:04:47]}
7. O-O {[%clk 0:04:37.3]} 7... c4 {[%clk 0:04:46.2]} 8. Be2 {[%clk 0:04:34.9]}
8... Qb6 {[%clk 0:04:44.7]} 9. Ne5 {[%clk 0:04:29.6]} 9... Nbd7 {[%clk 0:04:43]}
10. f4 {[%clk 0:04:27.6]} 10... Bd6 {[%clk 0:04:37.7]} 11. c3 {[%clk 0:04:20.8]}
11... Qc7 {[%clk 0:04:36]} 12. Bf3 {[%clk 0:04:09.1]} 12... Nf8 {[%clk
0:04:33.2]} 13. Bh4 {[%clk 0:04:03.5]} 13... Ng6 {[%clk 0:04:29.9]} 14. Bg3
{[%clk 0:03:58]} 14... Bd7 {[%clk 0:04:27.9]} 15. Rb1 {[%clk 0:03:55.4]} 15...
Bc6 {[%clk 0:04:26.7]} 16. Nxc6 {[%clk 0:03:43.8]} 16... bxc6 {[%clk 0:04:25.3]}
17. e4 {[%clk 0:03:39]} 17... Bxf4 {[%clk 0:04:21.1]} 18. exd5 {[%clk
0:03:29.2]} 18... exd5 {[%clk 0:04:20.1]} 19. Re1+ {[%clk 0:03:20.4]} 19... Kf8
{[%clk 0:04:18.5]} 20. Bxf4 {[%clk 0:03:05.1]} 20... Nxf4 {[%clk 0:04:16.2]} 21.
Qa4 {[%clk 0:02:58.4]} 21... g6 {[%clk 0:04:01.3]} 22. Qa6 {[%clk 0:02:36.9]}
22... Kg7 {[%clk 0:03:56.7]} 23. Rb7 {[%clk 0:02:34.2]} 23... Qd6 {[%clk
0:03:55.1]} 24. Rxa7 {[%clk 0:02:29.9]} 24... Rxa7 {[%clk 0:03:52.4]} 25. Qxa7
{[%clk 0:02:28]} 25... Ne6 {[%clk 0:03:48.5]} 26. Rb1 {[%clk 0:02:21]} 26... Rf8
{[%clk 0:03:36.4]} 27. Nf1 {[%clk 0:02:15.6]} 27... h5 {[%clk 0:03:32.1]} 28.
Rb6 {[%clk 0:02:12.2]} 28... g5 {[%clk 0:03:28.1]} 29. Qa6 {[%clk 0:02:10.1]}
29... g4 {[%clk 0:03:25.2]} 30. Bd1 {[%clk 0:02:06.3]} 30... Nd8 {[%clk
0:03:22]} 31. Ba4 {[%clk 0:02:01.9]} 31... Ne4 {[%clk 0:03:15.2]} 32. Bxc6
{[%clk 0:01:59.4]} 32... Nxc3 {[%clk 0:03:13]} 33. Ba4 {[%clk 0:01:46.5]} 33...
Qf4 {[%clk 0:03:04.3]} 34. Bc2 {[%clk 0:01:39.8]} 34... Ne2+ {[%clk 0:03:01.5]}
35. Kh1 {[%clk 0:01:35.5]} 35... Qxf1# {[%clk 0:03:00.5]} 0-1

[Event "Live Chess"]
[Site "Chess.com"]
[Date "2023.05.21"]
[Round "-"]
[White "Conradical12"]
[Black "raminguy"]
[Result "0-1"]
[WhiteElo "1572"]
[BlackElo "1957"]
[TimeControl "300"]
[EndTime "5:37:44 PDT"]
[Termination "raminguy won by resignation"]

1. e4 {[%clk 0:04:58]} 1... e5 {[%clk 0:04:58.6]} 2. Nf3 {[%clk 0:04:55.9]} 2...
Nc6 {[%clk 0:04:58.2]} 3. Bc4 {[%clk 0:04:53.7]} 3... Bc5 {[%clk 0:04:57.7]} 4.
d3 {[%clk 0:04:53]} 4... Nf6 {[%clk 0:04:56.4]} 5. c3 {[%clk 0:04:52.3]} 5...
O-O {[%clk 0:04:55.6]} 6. Nbd2 {[%clk 0:04:51.4]} 6... d5 {[%clk 0:04:54.9]} 7.
exd5 {[%clk 0:04:49.8]} 7... Nxd5 {[%clk 0:04:54.8]} 8. a4 {[%clk 0:04:47.8]}
8... a5 {[%clk 0:04:53.3]} 9. O-O {[%clk 0:04:44.6]} 9... Be6 {[%clk 0:04:52.2]}
10. Re1 {[%clk 0:04:42.7]} 10... Rb8 {[%clk 0:04:44.9]} 11. Ne4 {[%clk
0:04:41.2]} 11... Ba7 {[%clk 0:04:42.4]} 12. Qb3 {[%clk 0:04:28.1]} 12... h6
{[%clk 0:04:25.8]} 13. Bd2 {[%clk 0:04:10.6]} 13... Kh7 {[%clk 0:04:05.7]} 14.
Rad1 {[%clk 0:03:47.9]} 14... f5 {[%clk 0:03:11.1]} 15. Ng3 {[%clk 0:03:43.2]}
15... f4 {[%clk 0:03:07.8]} 16. Ne4 {[%clk 0:03:40.6]} 16... g5 {[%clk
0:02:53.4]} 17. Bxd5 {[%clk 0:03:25]} 17... Bxd5 {[%clk 0:02:50]} 18. c4 {[%clk
0:03:24.5]} 18... Bg8 {[%clk 0:02:38]} 19. Bc3 {[%clk 0:03:21.7]} 19... Nd4
{[%clk 0:02:26.2]} 20. Bxd4 {[%clk 0:03:14.5]} 20... Bxd4 {[%clk 0:02:19.2]} 21.
Nxd4 {[%clk 0:03:08.2]} 21... Qxd4 {[%clk 0:02:13.8]} 22. Qb5 {[%clk 0:03:04.9]}
22... c6 {[%clk 0:02:06]} 23. Qxa5 {[%clk 0:03:01.3]} 23... g4 {[%clk 0:02:05]}
24. Qc7+ {[%clk 0:02:57.7]} 24... Bf7 {[%clk 0:01:51.1]} 25. Nf6+ {[%clk
0:02:52.9]} 25... Kg7 {[%clk 0:01:45.6]} 26. Nd7 {[%clk 0:02:48.4]} 26... Rbc8
{[%clk 0:01:36.8]} 27. Qxe5+ {[%clk 0:02:37.3]} 27... Qxe5 {[%clk 0:01:35.3]}
28. Rxe5 {[%clk 0:02:36.7]} 28... Rfd8 {[%clk 0:01:32.9]} 29. Re7 {[%clk
0:02:28.2]} 29... Rc7 {[%clk 0:01:28.8]} 30. Rxf7+ {[%clk 0:01:53.8]} 30... Kxf7
{[%clk 0:01:26.4]} 31. Ne5+ {[%clk 0:01:53.4]} 31... Kg7 {[%clk 0:01:24.3]} 32.
Nxg4 {[%clk 0:01:48.6]} 32... Rcd7 {[%clk 0:01:22.3]} 33. Ne5 {[%clk 0:01:45.4]}
33... Re7 {[%clk 0:01:21.2]} 34. Re1 {[%clk 0:01:34.8]} 34... Rde8 {[%clk
0:01:14.6]} 35. Kf1 {[%clk 0:01:28.8]} 35... Rxe5 {[%clk 0:01:12.7]} 0-1

[Event "Live Chess"]
[Site "Chess.com"]
[Date "2023.05.21"]
[Round "-"]
[White "Ian-Morley"]
[Black "diana21strabt"]
[Result "0-1"]
[WhiteElo "1052"]
[BlackElo "1753"]
[TimeControl "300"]
[EndTime "5:37:46 PDT"]
[Termination "diana21strabt won by resignation"]

1. e4 {[%clk 0:04:57.8]} 1... d5 {[%clk 0:04:58.6]} 2. exd5 {[%clk 0:04:51.5]}
2... Qxd5 {[%clk 0:04:56.3]} 3. Nc3 {[%clk 0:04:50.7]} 3... Qa5 {[%clk
0:04:54.9]} 4. d4 {[%clk 0:04:44.8]} 4... Nf6 {[%clk 0:04:53.5]} 5. g3 {[%clk
0:04:42.9]} 5... Bg4 {[%clk 0:04:48.4]} 6. Be2 {[%clk 0:04:40.6]} 6... Bxe2
{[%clk 0:04:46]} 7. Nxe2 {[%clk 0:04:39.7]} 7... Nc6 {[%clk 0:04:44.1]} 8. Qd3
{[%clk 0:04:37.8]} 8... O-O-O {[%clk 0:04:42]} 9. Qb5 {[%clk 0:04:35.9]} 9...
Qxb5 {[%clk 0:04:37.9]} 10. Nxb5 {[%clk 0:04:34.5]} 10... a6 {[%clk 0:04:36.7]}
11. Nbc3 {[%clk 0:04:29.6]} 11... Nxd4 {[%clk 0:04:33.5]} 12. Nxd4 {[%clk
0:04:28.7]} 12... Rxd4 {[%clk 0:04:31.6]} 13. Be3 {[%clk 0:04:28.1]} 13... Rd7
{[%clk 0:04:27.5]} 14. Ke2 {[%clk 0:04:26]} 14... e6 {[%clk 0:04:26.4]} 15. Rhd1
{[%clk 0:04:22.8]} 15... Bb4 {[%clk 0:04:22.7]} 16. Rxd7 {[%clk 0:04:21.2]}
16... Kxd7 {[%clk 0:04:20.4]} 17. a3 {[%clk 0:04:19.9]} 17... Bxc3 {[%clk
0:04:18.6]} 18. bxc3 {[%clk 0:04:19.2]} 18... Rd8 {[%clk 0:04:14.4]} 19. Rd1+
{[%clk 0:04:18.1]} 19... Kc8 {[%clk 0:04:12.6]} 20. Rxd8+ {[%clk 0:04:16.8]}
20... Kxd8 {[%clk 0:04:11.4]} 21. Bg5 {[%clk 0:04:15.9]} 21... Kd7 {[%clk
0:04:07.7]} 22. Bc1 {[%clk 0:04:09]} 22... Nd5 {[%clk 0:03:59.2]} 23. c4 {[%clk
0:04:05.9]} 23... Nb6 {[%clk 0:03:56.8]} 24. c5 {[%clk 0:04:03.4]} 24... Nc4
{[%clk 0:03:53.9]} 25. Kd3 {[%clk 0:04:00.8]} 25... Ne5+ {[%clk 0:03:51.1]} 26.
Kd4 {[%clk 0:03:58.1]} 26... Ng4 {[%clk 0:03:48.7]} 27. h4 {[%clk 0:03:50.5]}
27... Nxf2 {[%clk 0:03:47.1]} 28. Be3 {[%clk 0:03:50]} 28... Ng4 {[%clk
0:03:45.8]} 29. Bg1 {[%clk 0:03:47.1]} 29... Kc6 {[%clk 0:03:43]} 30. c4 {[%clk
0:03:43.3]} 30... f5 {[%clk 0:03:32.8]} 31. h5 {[%clk 0:03:39.4]} 31... e5+
{[%clk 0:03:29.9]} 32. Kc3 {[%clk 0:03:37.1]} 32... Nf6 {[%clk 0:03:27.3]} 33.
Bh2 {[%clk 0:03:34.7]} 33... Nxh5 {[%clk 0:03:25.6]} 34. g4 {[%clk 0:03:33.8]}
34... fxg4 {[%clk 0:03:18.3]} 35. Bxe5 {[%clk 0:03:32.6]} 35... g3 {[%clk
0:03:15.7]} 36. Bd4 {[%clk 0:03:29.3]} 36... Nf4 {[%clk 0:03:13.9]} 37. Bg1
{[%clk 0:03:27.4]} 37... Ne2+ {[%clk 0:03:12.6]} 38. Kb4 {[%clk 0:03:24.4]}
38... Nxg1 {[%clk 0:03:10.8]} 0-1

[Event "Live Chess"]
[Site "Chess.com"]
[Date "2023.05.21"]
[Round "-"]
[White "MovebyMove"]
[Black "chessfiction"]
[Result "1-0"]
[WhiteElo "2474"]
[BlackElo "2302"]
[TimeControl "300"]
[EndTime "5:37:54 PDT"]
[Termination "MovebyMove won by resignation"]

1. c4 {[%clk 0:04:55.6]} 1... d5 {[%clk 0:04:58.9]} 2. cxd5 {[%clk 0:04:54.1]}
2... c6 {[%clk 0:04:58.8]} 3. dxc6 {[%clk 0:04:51]} 3... e5 {[%clk 0:04:58.1]}
4. Nc3 {[%clk 0:04:48.7]} 4... Bc5 {[%clk 0:04:52.9]} 5. e3 {[%clk 0:04:47.1]}
5... Nxc6 {[%clk 0:04:48.3]} 6. Nf3 {[%clk 0:04:45.7]} 6... Nf6 {[%clk
0:04:47.2]} 7. a3 {[%clk 0:04:30.8]} 7... e4 {[%clk 0:04:42.5]} 8. Ng5 {[%clk
0:04:27.6]} 8... Qe7 {[%clk 0:04:37.1]} 9. d3 {[%clk 0:04:20.4]} 9... exd3
{[%clk 0:04:34.2]} 10. Bxd3 {[%clk 0:04:19]} 10... O-O {[%clk 0:04:29.2]} 11.
O-O {[%clk 0:04:17.3]} 11... Bg4 {[%clk 0:04:21.6]} 12. Qc2 {[%clk 0:04:14.5]}
12... h6 {[%clk 0:04:12.5]} 13. Nh7 {[%clk 0:04:07.5]} 13... Rfd8 {[%clk
0:03:38.7]} 14. Nxf6+ {[%clk 0:04:05.1]} 14... Qxf6 {[%clk 0:03:38.6]} 15. Ne4
{[%clk 0:03:59.1]} 15... Qh4 {[%clk 0:03:26.4]} 16. Nxc5 {[%clk 0:03:51]} 16...
Ne5 {[%clk 0:03:20.3]} 17. Be2 {[%clk 0:03:45.9]} 17... Rac8 {[%clk 0:03:15.8]}
18. b4 {[%clk 0:03:40.5]} 18... Rd6 {[%clk 0:02:54.9]} 19. Bb2 {[%clk
0:03:30.1]} 19... Bxe2 {[%clk 0:02:45.2]} 20. Qxe2 {[%clk 0:03:25.8]} 20... Ng4
{[%clk 0:02:41.8]} 21. h3 {[%clk 0:03:21.8]} 21... Nf6 {[%clk 0:02:36.7]} 22.
Rad1 {[%clk 0:03:12.6]} 22... Nd5 {[%clk 0:02:34.8]} 23. Rd4 {[%clk 0:03:04.8]}
23... Qh5 {[%clk 0:02:31.3]} 24. Qxh5 {[%clk 0:03:01.5]} 1-0

[Event "Live Chess"]
[Site "Chess.com"]
[Date "2023.05.21"]
[Round "-"]
[White "bedsdrout"]
[Black "HoarseyHorsey"]
[Result "1-0"]
[WhiteElo "688"]
[BlackElo "1467"]
[TimeControl "300"]
[EndTime "5:37:55 PDT"]
[Termination "bedsdrout won by resignation"]

1. e4 {[%clk 0:04:52.6]} 1... c5 {[%clk 0:04:58.3]} 2. Nc3 {[%clk 0:04:47.4]}
2... Nc6 {[%clk 0:04:56.4]} 3. Nf3 {[%clk 0:04:45.1]} 3... e6 {[%clk 0:04:55.4]}
4. Be2 {[%clk 0:04:42.5]} 4... d5 {[%clk 0:04:50]} 5. exd5 {[%clk 0:04:39.3]}
5... exd5 {[%clk 0:04:49.9]} 6. d4 {[%clk 0:04:36.5]} 6... Nf6 {[%clk
0:04:48.8]} 7. O-O {[%clk 0:04:29.5]} 7... Bd6 {[%clk 0:04:40.3]} 8. Bg5 {[%clk
0:04:24.1]} 8... O-O {[%clk 0:04:36]} 9. h3 {[%clk 0:04:06.6]} 9... Be6 {[%clk
0:04:24.4]} 10. b3 {[%clk 0:04:02]} 10... h6 {[%clk 0:04:09.3]} 11. dxc5 {[%clk
0:03:54]} 11... Bxc5 {[%clk 0:04:06.1]} 12. Bxf6 {[%clk 0:03:51.7]} 12... Qxf6
{[%clk 0:04:04.8]} 13. Nxd5 {[%clk 0:03:46.2]} 13... Bxd5 {[%clk 0:04:03.6]} 14.
Qxd5 {[%clk 0:03:41.5]} 14... Bxf2+ {[%clk 0:03:50.8]} 15. Kxf2 {[%clk
0:03:29.4]} 15... Rad8 {[%clk 0:03:42.2]} 16. Qc5 {[%clk 0:03:24.8]} 16... Rfe8
{[%clk 0:03:28.9]} 17. Rad1 {[%clk 0:03:20.4]} 17... Ne5 {[%clk 0:03:14.4]} 18.
Rxd8 {[%clk 0:03:11.7]} 18... Rxd8 {[%clk 0:03:12.2]} 19. Qxe5 {[%clk
0:03:06.6]} 19... Qb6+ {[%clk 0:03:09.9]} 20. Qe3 {[%clk 0:03:04.2]} 20... Qf6
{[%clk 0:03:08]} 21. Kg1 {[%clk 0:03:01.6]} 21... Kf8 {[%clk 0:03:04]} 22. Ne5
{[%clk 0:02:36.5]} 22... Qe6 {[%clk 0:03:00.4]} 23. Bc4 {[%clk 0:02:31.4]} 23...
Qd6 {[%clk 0:02:38]} 24. Rxf7+ {[%clk 0:02:23.6]} 24... Kg8 {[%clk 0:02:22.8]}
25. Rxb7+ {[%clk 0:02:20.8]} 25... Kh8 {[%clk 0:02:19.8]} 26. Nf7+ {[%clk
0:02:18.2]} 1-0